Workbook

Sheet Portada

Sheet Balance de Comprobación
C2: Fondo de Jubilaciones y Pensiones del Poder Judicial
C4: Balance de Comprobación
C6: Al 31 de Marzo 2018
C9: ACTIVO
C10: Cuentas Corrientes Y De Ahorro | F10: 838828078
C11: Inversiones En Valores De Emisores Nacionales | F11: 4.902589099e+11
C12: Cuentas Por Cobrar | F12: 1062253693
C13: Productos Por Cobrar Sobre Inversiones | F13: 4103861482
C14: Préstamos a Afiliados | F14: 35004702.81
C15: Aportes Por Cobrar A Los Trabajadores | F15: 4194767480
C16: Aportes Por Cobrar Al Patrono | F16: 3739974246
C17: Aportes Por Cobrar Al Estado | F17: 283006342.1
C18: Otros Aportes Por Cobrar | F18: 247539784.9
C19: Mobiliario Y Equipo
C20: Equipo De Cómputo
C21: (Depreciación Acumulada)
C22: Costo de Programas Informáticos-Software | F22: 7618670
C23: (Amortización Programas Informáticos) | F23: -7618670
C24: GASTOS
C25: Pérdidas por Negociación de Instrumentos Financieros
C26: Pérdidas Por Fluctuación Cambiaria | F26: 419435658
C27: Pérdidas por Variaciones en la Unidad de Referencia | F27: 9401314.18
C28: Gastos Generales | F28: 505050689
C29: PASIVO
C30: Retenciones A Pensionados | H30: 1246664971
C31: Obligaciones Por Liquidar Empleados | H31: 143510.93
C32: Obligaciones Transitorias por Liquidar | H32: 46589706.07
C33: Retención Por Servicios Recibidos
C34: Cotización Seguro De Enfermedad Y Maternidad | H34: 505055600.8
C35: Provisión Para Pensiones En Curso De Pago | H35: 5.006098808e+11
C36: INGRESOS
C37: Productos Sobre Inversiones De Emisores Nacionales | H37: 2880346314
C38: Intereses Sobre Saldos En Cuentas Bancarias | H38: 44766.63
C39: Por Negociación de Instrumentos Financieros
C40: Ganancias por Fluctuación Cambiaria | H40: 116855743.3
C41: Ganancias por Variaciones en la Unidad de Referencia | H41: 290486556
C42: Ingresos sobre Préstamos de Afiliados | H42: 214889.59
C43: Otros Ingresos | H43: 1750586.36
C45: Sumas Iguales | F45: =SUM(F10:F28) -> 5.056980334e+11 | H45: =SUM(H30:H43) -> 5.056980334e+11
C68: Observación: Enlace al Manual de Políticas Contables.

Sheet Cambios Act. Netos Disponibles
B1: Fondo de Jubilaciones y Pensiones
B2: Estado de Cambios en los Activos Netos Disponibles
B3: Por el mes terminado al 31/03/2018
B4: (En colones sin céntimos)
D7: SALDO MENSUAL | G7: SALDO ACUMULADO
C8: NOTAS
B9: SALDO INICIAL | E9: 2710447110 | F9: (1) | H9: 2908712973 | I9: (2)
B11: INGRESOS | E11: 3289698856 | H11: 1.055436278e+10
B13: INGRESOS FINANCIEROS | D13: 3287948269 | G13: 1.053783001e+10
B14: Productos sobre Inversiones de Emisores Nacionales | C14: Nota 1 | D14: 2880346314 | G14: 8593415065
B15: Intereses sobre Saldos en Cuentas Corrientes | C15: Nota 2 | D15: 44766.63 | G15: 7128849.14
B16: Ganancias por Fluctuación Cambiaria | C16: Nota 3 | D16: 116855743.3 | G16: 858831913.5
B17: Ganancias por Variaciones en la Unidad de Referencia | C17: Nota 4 | D17: 290486556 | G17: 1077699193
B18: Ingresos sobre Préstamos a Afiliados y Pensionados | C18: Nota 5 | D18: 214889.59 | G18: 754988.71
B20: OTROS INGRESOS | D20: 1750586.36 | G20: 16532769.98
B22: PLAN DE CONTRIBUCIONES | C22: Nota 6 | E22: 6518675694 | H22: 1.932913901e+10
B24: RESERVAS EN FORMACION | D24: 6518675694 | G24: 1.932913901e+10
B25: De los trabajadores | D25: 2504882240 | G25: 7455984576
B26: Del Patrono | D26: 3246292135 | G26: 9629636266
B27: Del Estado | D27: 132581783.3 | G27: 399917648.7
B28: De los Pensionados | D28: 634919535.6 | G28: 1843600516
B29: Rendimientos Acumulados | D29: 0
B31: UTILIDAD ( PERDIDA DEL EJERCICIO ) | D31: 0
B33: TOTAL ADICIONES | E33: 9808374550 | H33: 2.988350179e+10
B35: SALIDA DE RECURSOS | E35: 9229122804 | H35: 2.774472771e+10
B36: Por Nuevos Pensionados | C36: Nota 7 | D36: 9229122804 | G36: 2.774472771e+10
B38: GASTOS | E38: 933887661.1 | H38: 2691675852
B40: GASTOS FINANCIEROS | D40: 428836972.2 | G40: 1224944117
B41: Pérdida por Fluctuación Cambiaria | C41: Nota 8 | D41: 419435658 | G41: 1190346729
B42: Pérdida por Variaciones en la Unidad de Referencia | C42: Nota 9 | D42: 9401314.18 | G42: 34597387.86
B44: GASTOS GENERALES | C44: Nota 10 | D44: 505050689 | G44: 1466731736
B46: TOTAL DE DEDUCCIONES | E46: 1.016301047e+10 | H46: 3.043640356e+10
B48: ACTIVOS NETOS DISPONIBLES PARA BENEFICIOS
B49: FUTUROS AL FINAL DEL PERIODO (3) | E49: 2355811195 | H49: 2355811195
B52: Observaciones:
B53: (1) Saldo inicial mensual: Corresponde al total de activos disponibles para beneficios futuros al final del mes de febrero 2018.
B54: (2) Saldo acumulado: Pertenece al total de activos disponibles de beneficios futuros al final del año anterior (Diciembre 2017).
B55: (3) Activos Netos Disponibles para Beneficios Futuros al Final del Periodo: Corresponde al total de ingresos menos el total de gastos.
B78: Observación: Enlace al Manual de Políticas Contables.

Sheet Act. Netos Dispon. Beneficios
B2: Fondo de Jubilaciones y Pensiones del Poder Judicial
B3: Estado de Activos Netos Disponibles para Beneficios
B4: AL 31/03/2018
B5: (En colones sin céntimos)
C6: NOTAS
B7: DISPONIBILIDADES | E7: 838828078
B8: Cuentas Corrientes y de Ahorro | C8: Nota 11 | D8: 838828078
B10: INVERSIONES EN VALORES | E10: 4.902589099e+11
B11: EN CURSO DE PAGO
B12: Inversiones en Valores de Emisores Nacionales | C12: Nota 12 | D12: 4.902589099e+11
B14: CUENTAS Y PRODUCTOS POR COBRAR SOBRE INVERSIONES | E14: 5166115176
B15: PROVISION PARA PENSIONES EN CURSO DE PAGO
B16: Cuentas Por Cobrar | C16: Nota 13 | D16: 1062253693
B17: Productos Por Cobrar Sobre Inversiones De Emisores Nacionales | C17: Nota 14 | D17: 4103861482
B19: PRESTAMOS A AFILIADOS Y PENSIONADOS | E19: 35004702.81
B20: Préstamos por Cobrar | C20: Nota 15 | D20: 35002327.01
B21: Productos por Cobrar sobre Préstamos | C21: Nota 15 | D21: 2375.8
B23: APORTES POR COBRAR | E23: 8465287854
B24: Aportes Por Cobrar A Los Trabajadores | C24: Nota 16 | D24: 4194767480
B25: Aportes Por Cobrar Al Patrono | C25: Nota 16 | D25: 3739974246
B26: Aportes Por Cobrar Al Estado | C26: Nota 16 | D26: 283006342.1
B27: Otros Aportes Por Cobrar | C27: Nota 16 | D27: 247539784.9
B29: PROPIEDAD, PLANTA Y EQUIPO | E29: 0
B30: Mobiliario y Equipo | D30: 0
B31: Equipo de Cómputo | D31: 0
B32: (Depreciación Acumulada) | D32: 0
B34: OTROS ACTIVOS | E34: 0
B35: Intangibles | C35: Nota 17 | D35: 0
B37: ACTIVO TOTAL | E37: 5.047641457e+11
B39: CUENTAS POR PAGAR | E39: 1293398188
B40: Retenciones A Pensionados | C40: Nota 18 | D40: 1246664971
B41: Obligaciones Por Liquidar Empleados y Exempleados | C41: Nota 19 | D41: 143510.93
B42: Obligaciones Transitorias por Liquidar | C42: Nota 20 | D42: 46589706.07
B44: PROVISIONES | E44: 505055600.8
B45: Cotización Seguro De Enfermedad y Maternidad | C45: Nota 21 | D45: 505055600.8
B47: PROVISIONES PARA PENSIONES EN CURSO DE PAGO | C47: Nota 22 | E47: 5.006098808e+11
B49: PASIVO TOTAL | E49: 5.024083345e+11
B51: ACTIVOS NETOS DISPONIBLES PARA BENEFICIOS FUTUROS (1) | E51: 2355811194
B53: CUENTAS DE ORDEN | C53: Nota 23 | E53: 288377621.4
B55: Observaciones:
B56: (1) Activos Netos Disponibles para Beneficios Futuros al Final del Periodo: Corresponde al total de ingresos menos el total de gastos.
B83: Observación: Enlace al Manual de Políticas Contables.

Sheet Nota 1
B2: Nota 1:
B3: Productos sobre Inversiones de Emisores Nacionales
B5: al 31 de Marzo de 2018
B7: MENSUAL
B9: PRODUCTOS SOBRE INVERSIONES DE VALORES NACIONALES | D9: COLONES | F9: DOLARES | H9: TOTAL
B11: Intereses devengados | D11: 2773866689 | F11: 181919302.6 | H11: 2955785992
B12: Amortización de descuento | D12: 3791062.99 | F12: 180351.55 | H12: 3971414.54
B13: Comisión devengada | D13: 0 | F13: 0 | H13: 0
B14: Amortización de prima | D14: -147638287.3 | F14: -1146613.65 | H14: -148784901
B15: Otros intereses devengados | D15: 0 | F15: 0 | H15: 0
B16: Ingresos por Dividendos | D16: 0 | F16: 69373808.42 | H16: 69373808.42
B18: TOTAL DE PRODUC. SOBRE INVERS. DE VALORES NACIONALES. | D18: =SUM(D11:D16) -> 2630019465 | F18: =SUM(F11:F17) -> 250326849 | H18: =SUM(H11:H17) -> 2880346314
B20: ACUMULADO
B22: PRODUCTOS SOBRE INVERSIONES DE VALORES NACIONALES | D22: COLONES | F22: DOLARES | H22: TOTAL
B24: Intereses devengados | D24: 8239536078 | F24: 547782069.3 | H24: 8787318147
B25: Amortización de descuento | D25: 10970833.28 | F25: 354619.64 | H25: 11325452.92
B26: Comisión devengada | D26: 0 | F26: -130184.67 | H26: -130184.67
B27: Amortización de prima | D27: -454798761.1 | F27: -3161686.59 | H27: -457960447.7
B28: Otros intereses devengados | D28: 0 | F28: 0 | H28: 0
B29: Ingresos por Dividendos | D29: 0 | F29: 252862097.2 | H29: 252862097.2
B31: TOTAL DE PRODUC. SOBRE INVERS. DE VALORES NACIONALES. | D31: =SUM(D24:D30) -> 7795708150 | F31: =SUM(F24:F30) -> 797706914.9 | H31: =SUM(H24:H30) -> 8593415065

Sheet Nota 2
C2: Nota 2:
C3: Intereses sobre Saldos en Cuentas Corrientes
C5: =+'Nota 1'!B5 -> al 31 de Marzo de 2018
C7: MENSUAL
C9: Cuenta Corriente | E9: Banco | G9: Intereses Ganados en el Mes | I9: Tipo de Cambio | K9: Total $
C11: 1234-0 | E11: Banco Nacional de Costa Rica
C12: 229-32-9 | E12: Banco de Costa Rica
C13: 18-1019277 | E13: Banco Popular y de Desarrollo Comunal
C14: 1914-1 $ | E14: Banco Popular y de Desarrollo Comunal | K14: 0
C15: 112247-9 $ | E15: Banco de Costa Rica | G15: 44766.63 | I15: 566.11 | K15: =+G15/I15 -> 79.07761742
C17: Total | G17: =SUM(G11:G16) -> 44766.63 | K17: =SUM(K14:K16) -> 79.07761742
C19: Acumulado
C21: Cuenta Corriente | E21: Banco | G21: Intereses Ganados en el Periodo
C23: 1234-0 | E23: Banco Nacional de Costa Rica | G23: 1647.54
C24: 229-32-9 | E24: Banco de Costa Rica | G24: 6707871.64
C25: 18-1019277 | E25: Banco Popular y de Desarrollo Comunal | G25: 6949.79
C26: 1914-1 $ | E26: Banco Popular y de Desarrollo Comunal
C27: 112247-9 $ | E27: Banco de Costa Rica | G27: 412380.17
C28: 174961-7 | E28: Banco de Costa Rica
C30: Total | G30: =SUM(G23:G29) -> 7128849.14
L45: 0

Sheet Nota 3
B2: Nota 3:
B3: Ganancias por Fluctuación Cambiaria
B5: =+'Nota 1'!$B$5:$H$5 -> al 31 de Marzo de 2018
B7: Cuenta | D7: Mes | F7: Acumulado
B8: Por Cuentas Corrientes | D8: 187794.83 | F8: 6731499.91
B9: En Inversiones En Valores De Emisores Nacionales $ | D9: 115667246.8 | F9: 843382877.4
B10: Por Cuentas Por Cobrar | D10: 488.48 | F10: 71006.07
B11: Por Productos Por Cobrar Sobre Inversion | D11: 1000213.19 | F11: 8646530.11
B12: Ganancia Total Generada | D12: =SUM(D8:D11) -> 116855743.3 | F12: =SUM(F8:F11) -> 858831913.5

Sheet Nota 4
B2: Nota 4:
B3: Ganancias por Variaciones en la Unidad de Referencia
B5: =+'Nota 1'!$B$5:$H$5 -> al 31 de Marzo de 2018
B7: Cuenta | D7: Mes | F7: Acumulado
B8: En valores emitidos por el Gobierno | D8: 290486556 | F8: 1077699193
B9: Ganancia Total Generada | D9: =SUM(D8:D8) -> 290486556 | F9: =SUM(F8:F8) -> 1077699193

Sheet Nota 5
B2: Nota 5:
B3: Ingresos sobre Préstamos a Afiliados y Pensionados
B5: =+'Nota 1'!$B$5:$H$5 -> al 31 de Marzo de 2018
B7: Total de Préstamo | D7: Entidad | F7: Plazo | H7: Tasa actual | J7: Ingreso Por Interes mensual | L7: Ingreso Por Interes Acumulado
B9: 1000000000 | D9: ANEJUD | F9: 10 años | H9: 0.0874 | J9: 214889.59 | L9: 754988.71

Sheet Nota 6
B2: Nota 6:
B3: PLAN DE CONTRIBUCIONES
B5: =++'Nota 1'!$B$5:$H$5 -> al 31 de Marzo de 2018
B7: Aportes | D7: Porcentajes | F7: Mensual | H7: Acumulado
B9: Trabajadores | D9: 0.11 | F9: 2504882240 | H9: 7455984576
B10: Patrono | D10: 0.1436 | F10: 3246292135 | H10: 9629636266
B11: Estado | D11: 0.0058 | F11: 132581783.3 | H11: 399917648.7
B12: Jubilados y Pensionados | D12: 0.11 | F12: 634919535.6 | H12: 1843600516
B14: Total Aportes | F14: =SUM(F9:F12) -> 6518675694 | H14: =SUM(H9:H12) -> 1.932913901e+10
B17: Notas:
B19: 1-) Mediante Acuerdo del Consejo Superior N° 2-2018, art I, se autoriza a disminuir el porcentaje del aporte estatal, a partir del mes de enero 2018 pasando de 1.24% a 0.58%, lo anterior por cuanto el Ministerio de Hacienda recortó del Presupuesto del Poder Judicial la suma de ¢1,200,000,000 (Mil doscientos millones de colones)
B21: 2-) La Dirección de Gestión Humana mediante oficios 006-CP-DGH-2018 y 009-CP-DGH-2018, remite la información equivalente al 0.66% para los meses de Enero, Febrero y Marzo del año 2018, con el fin de revelar el detalle de la cuenta por cobar por la diferencia porcentual:
D24: Mes | F24: Monto
D25: Enero | F25: 120402999.9
D26: Febrero | F26: 140520637.7
D27: Marzo | F27: 136080815.8
D28: Total | F28: =SUM(F25:F27) -> 397004453.4

Sheet Nota 7
B2: Nota 7:
B3: SALIDA DE RECURSOS
B5: =+'Nota 6'!B5:H5 -> al 31 de Marzo de 2018
D7: Mensual | F7: Acumulado
B9: Aportes | D9: 6518675694 | F9: 19329139006
B10: Rendimientos | D10: 2710447110 | F10: 8415588705
B12: TOTAL | D12: =SUM(D9:D10) -> 9229122804 | F12: =SUM(F9:F10) -> 2.774472771e+10
B14: Observación: Corresponde al traslado de todos los recursos de la cuenta patrimonial "Reserva en formación" a la cuenta "Provisión para pensiones en curso de pago"

Sheet Nota 8
B2: Nota 8:
B3: Pérdida por Fluctuación Cambiaria
B5: =+'Nota 7'!B5:F5 -> al 31 de Marzo de 2018
B7: Cuenta | D7: Mes | F7: Acumulado
B8: Por Cuentas Corrientes | D8: 187978.98 | F8: 5710537.36
B9: En Inversiones En Valores De Emisores Nacionales $ | D9: 415194567.2 | F9: 1172175147
B10: Por Cuentas Por Cobrar | D10: 92.41 | F10: 934.4
B11: Por Productos Por Cobrar Sobre Inversion | D11: 4053019.42 | F11: 12460109.46
B12: Pérdida Total Generada | D12: =SUM(D8:D11) -> 419435658 | F12: =SUM(F8:F11) -> 1190346729

Sheet Nota 9
B2: Nota 9:
B4: Pérdida por Variaciones en la Unidad de Referencia
B6: =+'Nota 8'!B5:F5 -> al 31 de Marzo de 2018
B8: Cuenta | D8: Mes | F8: Acumulado
B9: En valores emitidos por el Gobierno | D9: 9401314.18 | F9: 34597387.86
B10: Pérdida Total Generada | D10: =SUM(D9:D9) -> 9401314.18 | F10: =SUM(F9:F9) -> 34597387.86

Sheet Nota 10
B2: Nota 10:
B3: GASTOS GENERALES
B5: =+'Nota 9'!B6:F6 -> al 31 de Marzo de 2018
B7: GASTOS GENERALES | D7: MENSUAL | F7: ACUMULADO
B9: Servicios Bancarios | D9: 25 | F9: 149077.69
B10: Cotización Seguro De Enfermedad y Maternidad | D10: 505049629.3 | F10: 1466500409
B11: Gastos Diversos | D11: 1034.64 | F11: 82249.64
B13: TOTAL DE GASTOS GENERALES | D13: =SUM(D9:D12) -> 505050689 | F13: =SUM(F9:F12) -> 1466731736

Sheet Nota 11
B2: Nota 11:
B3: Cuentas Corrientes y de Ahorro
B5: =+'Nota 10'!B5:F5 -> al 31 de Marzo de 2018
B7: CUENTAS CORRIENTES Y DE AHORRO PROV. PARA PENSIONES EN CURSO DE PAGO | D7: TOTAL ¢ | F7: TIPO DE CAMBIO | H7: TOTAL $
B9: Banco Nacional de C.R. Cta 1234-0 | D9: 26627607.37
B10: Banco de Costa Rica Cta 229-32-9 | D10: 649316075
B11: Banco de Costa Rica Cta 174961-7 | D11: 23266870.1
B12: Banco Popular Cta 1019277-0 | D12: 72135002.23
B13: Banco Nacional de C.R. 2413-8 | D13: 0
B14: Banco de Costa Rica 349803-4 | D14: 65.53
B15: Banco de Costa Rica 349824-7 | D15: 34.94
B16: Banco de Costa Rica Cta. 112247-9 $ | D16: 66589806.39 | F16: 566.11 | H16: =+D16/F16 -> 117626.9742
B17: Banco Nacional de C.R. Cta 601227-7 $ | D17: 609710.38 | F17: 566.11 | H17: =+D17/F17 -> 1077.017505
B18: Banco Popular Cta 1914-1 $ | D18: 282906.04 | F18: 566.11 | H18: 499.7368709
B20: TOTAL EN CUENTAS CORRIENTES Y DE AHORRO | D20: =SUM(D9:D18) -> 838828078 | H20: =SUM(H16:H18) -> 119203.7286

Sheet Nota 12
B2: Nota 12:
B3: Inversiones en Valores de Emisores Nacionales
B5: =+'Nota 11'!B5:H5 -> al 31 de Marzo de 2018
B7: COLONES
B9: Inv. Valor Facial | D9: 4.310788209e+11
B10: Primas | D10: 9960164178
B11: Descuentos | D11: -75961354.45
B13: SALDO INVERSIONES EN COLONES | D13: =SUM(D9:D11) -> 4.409630237e+11
B16: SALDO DÓLARES | F16: TIPO DE CAMBIO | H16: SALDO EN COLONES
B18: Inv. Valor Facial | D18: =+H18/F18 -> 65921488.07 | F18: 566.11 | H18: 3.731881361e+10
B19: Primas | D19: =+H19/F19 -> 87701.76983 | F19: 566.11 | H19: 49648848.92
B20: Descuentos | D20: =+H20/F20 -> -8111.22001 | F20: 566.11 | H20: -4591842.76
B21: Títulos de Participación | D21: =+H21/F21 -> 21077203.37 | F21: 566.11 | H21: 1.19320156e+10
B23: SALDO INVERSIONES EN DÓLARES (COLONIZADO) | D23: =SUM(D18:D21) -> 87078281.99 | H23: =SUM(H18:H21) -> 4.929588622e+10
B25: TOTAL GENERAL: | D25: =+D13+H23 -> 4.902589099e+11

Sheet Nota 13
B2: Nota 13:
B3: CUENTAS POR COBRAR
B5: =+'Nota 12'!B5:H5 -> al 31 de Marzo de 2018
B7: Cuentas por Cobrar
B9: Títulos vencidos pendientes de cobro | D9: 468774637
B10: Impuesto Sobre La Renta Por Cobrar (1) | D10: 593479034.6
B11: Sumas Pend. De cobrar (2) | D11: 21.6
B13: Saldo: | D13: =D9+D10+D11 -> 1062253693
B15: 1-) Corresponden aquellas sumas que debe recuperar el Régimen por concepto de exención del 8% del impuesto sobre la renta de los títulos valores, que por su situación particular, no es posible cobrarlos inmediatamente con el vencimiento de los cupones
B18: 2-) En esta cuenta se registrará las cuentas por cobrar, generadas de la captación de inversiones, por comisiones pagadas de más, intereses moratorios u otros.

Sheet Nota 14
B2: Nota 14:
B4: Productos por cobrar sobre Inversiones de Emisores Nacionales
B6: =+'Nota 13'!B5:D5 -> al 31 de Marzo de 2018
B8: Productos por cobrar sobre Inversiones
B10: Sobre Valores Emitidos Por El Banco Central | D10: 267766876.9
B11: Sobre Valores Emitidos Por El Gobierno | D11: 2705927842
B12: Sobre Valor. Emit. otras Ent Pub. no Fininancieras | D12: 74899390.76
B13: Sobre Valores Emitidos Por Bancos Comerciales | D13: 648397452.3
B14: Sobre Val. Emit. Bcos. Pub. Ley. Especiales | D14: 149090561.3
B15: Sobre Val. Emit. Bcos. Bancos Privados | D15: 8962473.47
B16: Dividendos por Cobrar | D16: 248816885.7
B18: Saldo | D18: =SUM(D10:D17) -> 4103861482

Sheet Nota 15
B2: Nota 15:
B3: Préstamos por Cobrar
B5: =+'Nota 14'!B6:D6 -> al 31 de Marzo de 2018
B7: SUMAS GIRADAS A: | D7: MONTO
B9: ANEJUD: Débito No. 2863 de la Cta 174961-7 BCR el 9 de diciembre de 2008 (Autorizado por la Dirección Ejecutiva oficio No.9488-DE-08) | D9: 166244019.2
B10: ANEJUD: Débito No. 20806860 de la Cta 1234-0 BNCR el 9 de diciembre de 2008 (Autorizado por la Dirección Ejecutiva oficio No.9488-DE-08) | D10: 410921974.9
B11: ANEJUD: Débito No. 379 de la Cta 229-32-9 BCR el 10 de febrero de 2009 (Autorizado por la Dirección Ejecutiva con oficio No. 1123-DE-2009 ). El desembolso autorizado por esa Dirección Ejecutiva es por ¢422.834.006 de los cuales y a solicitud de ANEJUD con oficio del 10 de febrero de 2009 a Don Walter Jiménez Sorio, Jefe del Departamento Financiero Contable en su oportunidad, se deduce la primera cuota de intereses cancelada por adelantado de ¢6.876.239. El total girado con el débito No. 379 es ¢415.957.767. | D11: 422834006
B13: TOTAL DE LOS DESEMBOLSOS | D13: =SUM(D9:D11) -> 1000000000
B15: Menos. Amortizaciones | D15: 964997673
B17: Saldo del préstamo | D17: =+D13-D15 -> 35002327.01
B19: Mas: Intereses por cobrar | D19: 2376
B21: TOTAL POR COBRAR | D21: =+D17+D19 -> 35004703.01

Sheet Nota 16
B2: Nota 16:
B3: APORTES POR COBRAR
B5: =+'Nota 15'!B5:D5 -> al 31 de Marzo de 2018
B7: Nota | D7: Sub-nota | F7: APORTES POR COBRAR | H7: Detalle | J7: Total
B9: 16.1 | F9: Aporte por cobrar a los trabajadores | J9: 4194767480
D10: 16.1.1 | F10: Aporte Ordinario | H10: 1160497611
D11: 16.1.2 | F11: Aporte Ordinario S .Escolar | H11: 567489618.4
D12: 16.1.3 | F12: Aporte Reconocimiento de tiempo servido | H12: 2466780252
B13: 16.2 | F13: Aportes por cobrar al Patrono | J13: 3739974246
D14: 16.2.1 | F14: Aportes Por Cobrar Poder Jud.-Patrono | H14: 2998517105
D15: 16.2.2 | F15: Apor. x Cobrar Poder Jud.-Patrono (S.E) | H15: 741457141.2
B16: 16.3 | F16: Aportes por cobrar al Estado | J16: 283006342.1
D17: 16.3.1 | F17: Aportes Por Cobrar Poder Jud.-Estado | H17: 122527324.2
D18: 16.3.2 | F18: Apor. x Cobrar Poder Jud.-Estado (S.E) | H18: 160479017.9
B19: 16.4 | F19: Otros aportes por cobrar | J19: 247539784.9
D20: 16.4.1 | F20: Sumas canceladas de más a Jubilados y Pensionados | H20: 140671628.6
D21: 16.4.2 | F21: Aportes Reconocimiento de Tiempo Servido Fuera del Poder Judicial (RTSFPJ) | H21: 6917691.97
D22: 16.4.3 | F22: Otros aportes por cobrar entidades deductoras | H22: 1381561.04
D23: 16.4.4 | F23: Sumas canceladas de más a Jubilados y Pensionados (Aguinaldo) | H23: 98568903.28
F25: TOTAL | J25: =SUM(J9:J23) -> 8465287854

Sheet Nota 17
B2: Nota 17:
B3: INTANGIBLES
B5: =+'Nota 16'!B5:J5 -> al 31 de Marzo de 2018
B7: Detalle | D7: Monto | F7: Amortización | H7: Total
B8: Sistema inversiones "Internet Systems Development Insyde S.A" | D8: 7618670 | F8: -7618670 | H8: 0
B11: Nota:
B12: Corresponde al registro de la compra del Sistema de Inversiones a la empresa Internet Systems Development Insyde S.A. con un valor de $14,750.00, valorado al tipo de cambio de la fecha de adquisición del activo (15 de agosto de 2007) de ¢516.52, para un total de ¢7,618,670. A dicho monto se descuenta la amortización acumulada al cierre del presente mes que asciende a ¢7,618,670 para un activo neto de ¢0.00. La vida útil del sistema en mención es de 5 años y considerando que fue registrado en setiembre del 2007 se encuentra depreciado en su totalidad, no obstante, a la fecha de este informe se encuentra en funcionamiento. En el periodo comprendido entre el 15 de julio a 12 de diciembre del 2011 la Dirección de Tecnología de Información realizó mejoras al sistema de Inversiones por la suma de ¢1.673.895. Lo anterior, de acuerdo con la información suministrada por la Dirección de Tecnología de la Información, mediante correo electrónico del 27 de abril del 2017 y oficio 1635-DTI-2017, dicho monto se encuentra registrado actualmente en los registros contables del Poder Judicial por igual suma. Con oficio 425-SC-2015 de 26 de agosto del 2015, se realizó la consulta a la Superintendencia de Pensiones (SUPEN) sobre la forma de registro contable de la información suministrada por la Dirección de Tecnología de Información, en virtud de que, en el Manual de Cuentas para el Régimen de Capitalización Colectiva emitido por dicha Superintendencia, no se observa alguna cuenta contable para el registro de la reevaluación de activos intangibles. La SUPEN ante la consulta realizada, indicó lo siguiente: “[…] conforme lo establecido en las Normas internacionales de Información Financiera (NIIF), se le comunica que no existe forma alguna de atribuir costo a un activo intangible luego del final de su vida útil: aunque esté en operación y generando beneficios, su valor en libros deberá seguir siendo cero…”

Sheet Nota 18
C2: Nota 18:
C4: Retenciones A Pensionados
C6: =+'Nota 17'!B5 -> al 31 de Marzo de 2018
C8: RETENCIONES A JUBILADOS Y PENSIONADOS | E8: TOTAL
C10: Impuesto Sobre La Renta | E10: 429269828.5
C11: Caja Costarricense Seguro Social | E11: 288599794.3
C12: Caprede | E12: 116006465.9
C13: Fondo Socorro Mutuo | E13: 3142000
C14: Anejud | E14: 6104212.44
C15: I.N.S. | E15: 786744.5
C16: Pensiones Alimentarias | E16: 17182862.42
C17: Banco Popular | E17: 92629326.88
C18: Invu | E18: 830489
C19: Coopeservidores | E19: 34537611
C20: Cta 20192-8 | E20: 226747.5
C21: Asojupen | E21: 21617849.82
C22: Coopejudicial | E22: 133851299.5
C23: Coocique | E23: 1977888
C24: Servicoop | E24: 2028821.5
C25: Coopealianza | E25: 31130898.01
C26: Asosejud | E26: 6764345.74
C27: Anic | E27: 701354.84
C28: Coopenae | E28: 38437284.76
C29: Coopecaja R.L. | E29: 10156414.43
C30: Asejuque | E30: 108000
C31: CoopeSanGabriel | E31: 823060.05
C32: Colegio de Abogados de C.R. | E32: 744000
C33: CoopeAnde No. 5 | E33: 253144.5
C34: Coopesparta | E34: 1404639.73
C35: Asociación Deportiva del Pod | E35: 23000
C36: COOPEMAPRO R.L | E36: 8244.14
C37: Coopenacional R.L. | E37: 108607.5
C38: COOPEAFM RL | E38: 116751.52
C39: SITRAJUD | E39: 29634.5
C40: ASODEJUG | E40: 245000
C41: Coope San Ramon R.L | E41: 408975
C42: COOPEMEP R.L | E42: 4209329.82
C43: COOPEANDE N° 1 | E43: 2200345.5
C45: TOTAL DE RETENCIONES A JUBILADOS Y PENSIONADOS | E45: =SUM(E10:E44) -> 1246664971

Sheet Nota 19
A2: Nota 19:
B4: Obligaciones Por Liquidar Empleados y Exempleados
B6: =+'Nota 18'!C6 -> al 31 de Marzo de 2018
B9: OBLIGACIONES POR LIQUIDAR EMPL. Y EXEMPL. | D9: TOTAL
B11: VCLO | D11: 64093.76
B12: REMA | D12: 71769.5
B13: ESC | D13: 7648
B15: OBLIGACIONES POR LIQUIDAR EMPL. Y EXEMPL. | D15: =SUM(D11:D14) -> 143511.26

Sheet Nota 20
B2: Nota 20:
B4: Obligaciones Transitorias por Liquidar
B6: =+'Nota 19'!B6:D6 -> al 31 de Marzo de 2018
B8: Obligaciones Transitorias por Liquidar | D8: Saldo
B10: Benef. no retirados y por fallecimiento | D10: 35949191.66
B11: Sumas en transito por aclarar | D11: 2822005
B12: Institucione Financieras Banco Popular y de Desarr | D12: 498197.34
B13: Instituciones Gubernamentales-Caja Costarricense d | D13: 3796451.36
B14: Anejud | D14: 876630.38
B15: Transitoria de deducción | D15: 2414979.6
B16: Instituciones Financieras-Banco Popular y de Desar | D16: 232250.73
B18: Total Obligaciones Transitorias por Liquidar | D18: =SUM(D10:D17) -> 46589706.07

Sheet Nota 21
B2: Nota 21:
B4: Cotización Seguro De Enfermedad y Maternidad
B6: =+'Nota 20'!B6:D6 -> al 31 de Marzo de 2018
B8: Entidad | D8: Porcentaje | F8: Monto
B9: Caja Costarricense del Seguro Social | D9: 0.0875 | F9: 505055600.8

Sheet Nota 22
B2: Nota 22:
B3: PROVISIONES PARA PENSIONES EN CURSO DE PAGO
B5: =+'Nota 21'!B6:F6 -> al 31 de Marzo de 2018
B7: Nota | D7: Sub-nota | F7: APORTES POR COBRAR | H7: Detalle | J7: Total
B9: 22.1 | F9: Recursos recibido de reservas en formación | J9: 9.610739078e+11
B10: 22.2 | F10: (Menos) Pago plan de beneficios | J10: 4.60464027e+11
D11: 22.2.1 | F11: Traslados a otros regímenes | H11: 462148487.4
F13: TOTAL | J13: =+J9-J10 -> 5.006098808e+11
B16: Nota:
B18: Mediante oficio 426-SC-2017 con fecha del 22 de diciembre 2017, se informa a la Dirección Ejecutiva sobre el resultado del estudio de Auditoria informe N°624-30-SAFJP-2017, en el que se solicita: "4.10. Realizar los ajustes correspondientes al registro contable de los aportes patronal y estatal, una vez que Gestión Humana remita los reportes que sustentan las cuentas por cobrar al Poder Judicial, de aquellos periodos en que se utilizó un dato incorrecto, considerando que ya se efectuó un pago producto del cambio en dichos aportes (acuerdo del artículo XXV de sesión de Corte Plena No. 5-17 celebrada el 6 de marzo de 2017) y que a la fecha se utilizan porcentajes incorrectos", producto de dicho estudio se determina una cuenta por pagar al Poder Judicial de ¢219,712,457.14, la cual se revela como nota al estado financiero hasta que la Dirección Ejecutiva gire instrucciones superiores. Cabe destacar que mediante oficio 129-SC-2018 con fecha de 23 de marzo de 2018, se reitera la información.

Sheet Nota 23
B2: Nota 23:
B4: CUENTAS DE ORDEN DEUDORAS Y ACREDORAS
B6: =+'Nota 22'!B5:J5 -> al 31 de Marzo de 2018
B8: Concepto | D8: Monto
B9: Cuentas por cobrar por reconocimiento de tiempo servido en otras dependencias o instituciones públicas, de aquellos servidores en condición de propietarios que renunciaron al Poder Judicial. | D9: 288377621.4
